lending/lending_fUSD_20241120
["ID","MTS","AMOUNT","RATE_DAILY","PERIOD"]
[342724952,1732086707278,-500.0,0.0005589,120]
[342724953,1732086707288,-500.0,0.0005589,120]
[342724954,1732086707297,-507.04393057,0.0005589,120]
[342724955,1732086707306,-500.0,0.0005589,120]
[342724956,1732086707320,-500.0,0.0005589,120]
[342724957,1732086707330,-500.0,0.0005589,120]
[342724958,1732086707340,-500.0,0.0005589,120]
[342724959,1732086707349,-500.0,0.0005589,120]
[342724960,1732086707362,-500.0,0.0005589,120]
[342724961,1732086707371,-569.95552681,0.0005589,120]
[342724962,1732086707381,-502.65670906,0.0005589,120]
[342724963,1732086707392,-500.0,0.0005589,120]
[342724964,1732086707401,-196.04574664,0.0005589,120]
[342724965,1732086707412,-500.0,0.0005589,120]
[342724966,1732086707576,-500.0,0.0005589,120]
[342724967,1732086707588,-500.0,0.0005589,120]
[342724968,1732086707598,-500.0,0.0005589,120]
[342724969,1732086707609,-500.0,0.0005589,120]
[342724970,1732086707620,-326.94358208,0.0005589,120]
[342724971,1732086707631,-500.0,0.0005589,120]
[342724972,1732086707641,-504.9740125,0.0005589,120]
[342724973,1732086707650,-500.0,0.0005589,120]
[342724974,1732086707660,-190.29876858,0.0005589,120]
[342724975,1732086707671,-500.0,0.0005589,120]
[342724976,1732086707680,-500.0,0.0005589,120]
[342724977,1732086707691,-500.0,0.0005589,120]
[342724978,1732086707700,-500.0,0.0005589,120]
[342724979,1732086707710,-500.0,0.0005589,120]
[342724980,1732086707719,-500.0,0.0005589,120]
[342724981,1732086707729,-500.0,0.0005589,120]
[342724982,1732086707738,-183.80248813,0.0005589,120]
[342724983,1732086707746,-503.08287374,0.0005589,120]
[342724984,1732086707755,-179.68224961,0.0005589,120]
[342724985,1732086707764,-502.47654179,0.0005589,120]
[342724986,1732086707773,-500.0,0.0005589,120]
[342724987,1732086707782,-500.0,0.0005589,120]
[342724988,1732086707791,-659.42,0.0005589,120]
[342724989,1732086707800,-500.0,0.0005589,120]
[342724990,1732086707808,-500.0,0.0005589,120]
[342724991,1732086707818,-500.0,0.0005589,120]
[342724992,1732086707827,-500.0,0.0005589,120]
[342724993,1732086707836,-500.0,0.0005589,120]
[342724994,1732086707845,-500.0,0.0005589,120]
[342724995,1732086707855,-2717.09,0.0005589,120]
[342724996,1732086707865,-500.0,0.0005589,120]
[342724997,1732086707874,-500.0,0.0005589,120]
[342724998,1732086707883,-500.0,0.0005589,120]
[342724999,1732086707892,-482.24337655,0.0005589,120]
[342725000,1732086707903,-503.95560509,0.0005589,120]
[342725001,1732086707913,-533.0813693,0.0005589,120]
[342725002,1732086707923,-219.81110601,0.0005589,120]
[342725003,1732086707932,-523.88864542,0.0005589,58]
[342725004,1732086707942,-500.0,0.0005589,120]
[342725005,1732086707951,-500.0,0.0005589,120]
[342725006,1732086707961,-500.0,0.0005589,120]
[342725007,1732086707970,-500.0,0.0005589,120]
[342725008,1732086707981,-500.0,0.0005589,120]
[342725009,1732086707991,-500.0,0.0005589,120]
[342725010,1732086708001,-500.0,0.0005589,120]
[342725011,1732086708010,-500.0,0.0005589,120]
[342725012,1732086708019,-500.0,0.0005589,120]
[342725013,1732086708028,-500.0,0.0005589,120]
[342725014,1732086708037,-500.0,0.0005589,120]
[342725015,1732086708047,-500.0,0.0005589,120]
[342725016,1732086708056,-500.0,0.0005589,120]
[342725017,1732086708065,-288.38308406,0.0005589,120]
[342725018,1732086708074,-798.52,0.0005589,120]
[342725019,1732086708084,-500.0,0.0005589,120]
[342725020,1732086708094,-982.26,0.0005589,120]
[342725021,1732086708105,-500.0,0.0005589,120]
[342725022,1732086708115,-500.0,0.0005589,120]
[342725023,1732086708124,-500.0,0.0005589,120]
[342725024,1732086708134,-500.0,0.0005589,120]
[342725025,1732086708144,-511.20072269,0.0005589,120]
[342725026,1732086708154,-545.06782566,0.0005589,120]
[342725027,1732086708163,-707.74,0.0005589,120]
[342725028,1732086708173,-507.36665067,0.0005589,120]
[342725029,1732086708182,-502.12986508,0.0005589,120]
[342725030,1732086708191,-4470.82,0.0005589,120]
[342725031,1732086708200,-500.0,0.0005589,120]
[342725032,1732086708209,-585.57181521,0.0005589,120]
[342725033,1732086708219,-500.0,0.0005589,120]
[342725034,1732086708228,-502.31521866,0.0005589,120]
[342725035,1732086708238,-500.0,0.0005589,120]
[342725036,1732086708247,-500.0,0.0005589,120]
[342725037,1732086708256,-650.76,0.0005589,21]
[342725038,1732086708266,-2268.24,0.0005589,120]
[342725039,1732086708275,-3957.68,0.0005589,60]
[342725040,1732086708285,-500.0,0.0005589,120]
[342725041,1732086708294,-309.54839446,0.0005589,120]
[342725042,1732086708303,-500.0,0.0005589,120]
[342725043,1732086708314,-717.59,0.0005589,120]
[342725044,1732086708327,-505.29601116,0.0005589,120]
[342725045,1732086708336,-3094.65,0.0005589,120]
[342725046,1732086708346,-2000.0,0.0005589,120]
[342725047,1732086708356,-500.0,0.0005589,120]
[342725048,1732086708367,-500.0,0.0005589,120]
[342725049,1732086708377,-500.0,0.0005589,120]
[342725050,1732086708386,-500.0,0.0005589,120]
[342725051,1732086708399,-998.06,0.0005589,120]
[342725052,1732086708409,-500.0,0.0005589,120]
[342725053,1732086708418,-500.0,0.0005589,120]
[342725054,1732086708428,-1516.88,0.0005589,120]
[342725055,1732086708437,-617.47,0.0005589,120]
[342725056,1732086708446,-2604.2,0.0005589,120]
[342725057,1732086708456,-500.17,0.0005589,120]
[342725058,1732086708465,-500.0,0.0005589,120]
[342725059,1732086708474,-500.0,0.0005589,120]
[342725060,1732086708485,-500.0,0.0005589,120]
[342725061,1732086708496,-500.0,0.0005589,120]
[342725062,1732086708505,-635.36,0.0005589,120]
[342725063,1732086708515,-500.0,0.0005589,120]
[342725064,1732086708524,-519.71984055,0.0005589,120]
[342725065,1732086708534,-500.0,0.0005589,120]
[342725066,1732086708544,-500.0,0.0005589,120]
[342725067,1732086708553,-500.0,0.0005589,120]
[342725068,1732086708563,-500.0,0.0005589,120]
[342725069,1732086708572,-500.0,0.0005589,120]
[342725070,1732086708582,-500.0,0.0005589,120]
[342725071,1732086708591,-700.75,0.0005589,120]
[342725072,1732086708600,-500.0,0.0005589,120]
[342725073,1732086708610,-500.0,0.0005589,120]
[342725074,1732086708620,-500.0,0.0005589,120]
[342725075,1732086708629,-505.72,0.0005589,120]
[342725076,1732086708638,-500.0,0.0005589,120]
[342725077,1732086708648,-500.0,0.0005589,120]
[342725078,1732086708657,-501.61820749,0.0005589,120]
[342725079,1732086708667,-1000.0,0.0005589,120]
[342725080,1732086708676,-500.0,0.0005589,120]
[342725081,1732086708686,-500.0,0.0005589,120]
[342725082,1732086708696,-500.0,0.0005589,30]
[342725083,1732086708705,-500.0,0.0005589,120]
[342725084,1732086708714,-500.0,0.0005589,120]
[342725085,1732086708724,-500.0,0.0005589,120]
[342725086,1732086708734,-3206.56,0.0005589,120]
[342725087,1732086708744,-508.31,0.0005589,120]
[342725088,1732086708753,-946.93,0.0005589,120]
[342725089,1732086708763,-500.0,0.0005589,120]
[342725090,1732086708773,-500.0,0.0005589,120]
[342725091,1732086708782,-500.0,0.0005589,120]
[342725092,1732086708792,-500.0,0.0005589,120]
[342725093,1732086708801,-500.0,0.0005589,120]
[342725094,1732086708811,-500.0,0.0005589,120]
[342725095,1732086708820,-503.21914193,0.0005589,120]
[342725096,1732086708830,-500.0,0.0005589,120]
[342725097,1732086708839,-500.0,0.0005589,120]
[342725098,1732086708849,-346.28814045,0.0005589,120]
[342725099,1732086708860,-500.0,0.0005589,120]
[342725100,1732086708870,-503.37677511,0.0005589,120]
[342725101,1732086708879,-500.0,0.0005589,120]
[342725102,1732086708888,-505.97763679,0.0005589,120]
[342725103,1732086708898,-500.0,0.0005589,120]
[342725104,1732086708907,-500.0,0.0005589,120]
[342725105,1732086708916,-435.06692614,0.0005589,120]
[342725106,1732086708926,-2581.57,0.0005589,120]
[342725107,1732086708935,-500.0,0.0005589,120]
[342725108,1732086708945,-501.39968061,0.0005589,120]
[342725109,1732086708954,-500.0,0.0005589,120]
[342725110,1732086708963,-1301.4,0.0005589,120]
[342725111,1732086708973,-5192.93,0.0005589,120]
[342725112,1732086708981,-500.0,0.0005589,120]
[342725113,1732086708992,-500.0,0.0005589,120]
[342725114,1732086709001,-500.0,0.0005589,120]
[342725115,1732086709010,-700.0,0.0005589,120]
[342725116,1732086709020,-500.0,0.0005589,120]
[342725117,1732086709029,-500.0,0.0005589,120]
[342725118,1732086709039,-500.0,0.0005589,120]
[342725119,1732086709048,-507.34255094,0.0005589,120]
[342725120,1732086709057,-500.0,0.0005589,120]
[342725121,1732086709065,-852.9,0.0005589,120]
[342725122,1732086709075,-500.0,0.0005589,120]
[342725123,1732086709084,-2774.17,0.0005589,120]
[342725124,1732086709093,-3061.68,0.0005589,120]
[342725125,1732086709103,-500.0,0.0005589,120]
[342725126,1732086709112,-500.0,0.0005589,120]
[342725127,1732086709122,-500.0,0.0005589,120]
[342725128,1732086709131,-506.27289679,0.0005589,120]
[342725129,1732086709140,-564.95391387,0.0005589,120]
[342725130,1732086709150,-2031.6,0.0005589,120]
[342725131,1732086709159,-505.74281844,0.0005589,120]
[342725132,1732086709167,-500.0,0.0005589,120]
[342725133,1732086709177,-646.93034691,0.0005589,120]
[342725134,1732086709186,-500.0,0.0005589,120]
[342725135,1732086709196,-500.0,0.0005589,120]
[342725136,1732086709206,-500.0,0.0005589,120]
[342725137,1732086709215,-500.0,0.0005589,120]
[342725138,1732086709224,-503.75168606,0.0005589,120]
[342725139,1732086709233,-494.76486619,0.0005589,120]
[342725140,1732086709242,-291.83179755,0.0005589,120]
[342725141,1732086709251,-325.69795934,0.0005589,120]
[342725142,1732086709261,-500.0,0.0005589,120]
[342725143,1732086709270,-2936.91,0.0005589,120]
[342725144,1732086709279,-500.0,0.0005589,120]
[342725145,1732086709288,-500.0,0.0005589,120]
[342725146,1732086709298,-508.59805814,0.0005589,120]
[342725147,1732086709308,-500.0,0.0005589,120]
[342725148,1732086709321,-720.2,0.0005589,120]
[342725149,1732086709331,-572.80873664,0.0005589,120]
[342725150,1732086709340,-500.0,0.0005589,120]
[342725151,1732086709349,-162.77504863,0.0005589,120]
[342725152,1732086709360,-520.46860936,0.0005589,120]
[342725153,1732086709370,-500.0,0.0005589,120]
[342725154,1732086709379,-2810.53,0.0005589,120]
[342725155,1732086709389,-500.0,0.0005589,120]
[342725156,1732086709399,-501.92535072,0.0005589,120]
[342725157,1732086709409,-639.5902565,0.0005589,120]
[342725158,1732086709418,-500.0,0.0005589,120]
[342725159,1732086709427,-1822.63,0.0005589,120]
[342725160,1732086709437,-511.45300097,0.0005589,120]
[342725161,1732086709446,-1273.99,0.0005589,120]
[342725162,1732086709456,-511.84543127,0.0005589,120]
[342725163,1732086709467,-500.0,0.0005589,120]
[342725164,1732086709476,-523.84787185,0.0005589,120]
[342725165,1732086709487,-850.0,0.0005589,120]
[342725166,1732086709496,-500.0,0.0005589,120]
[342725167,1732086709505,-500.0,0.0005589,120]
[342725168,1732086709515,-500.0,0.0005589,120]
[342725169,1732086709524,-500.0,0.0005589,120]
[342725170,1732086709533,-711.44,0.0005589,120]
[342725171,1732086709543,-500.0,0.0005589,120]
[342725172,1732086709552,-729.82,0.0005589,120]
[342725173,1732086709561,-510.20320606,0.0005589,120]
[342725174,1732086709571,-500.0,0.0005589,120]
[342725175,1732086709580,-2955.44,0.0005589,120]
[342725176,1732086709589,-500.0,0.0005589,120]
[342725177,1732086709598,-500.0,0.0005589,20]
[342725178,1732086709608,-500.0,0.0005589,120]
[342725179,1732086709617,-2080.78,0.0005589,120]
[342725180,1732086709627,-500.0,0.0005589,120]
[342725181,1732086709636,-500.0,0.0005589,120]
[342725182,1732086709645,-500.0,0.0005589,120]
[342725183,1732086709654,-500.0,0.0005589,120]
[342725184,1732086709663,-1918.47,0.0005589,120]
[342725185,1732086709673,-500.0,0.0005589,120]
[342725186,1732086709682,-606.63,0.0005589,120]
[342725187,1732086709692,-500.0,0.0005589,120]
[342725188,1732086709702,-1137.2,0.0005589,3]
[342725189,1732086709711,-500.0,0.0005589,120]
[342725190,1732086709721,-500.0,0.0005589,120]
[342725191,1732086709731,-2847.53,0.0005589,120]
[342725192,1732086709741,-500.0,0.0005589,120]
[342725193,1732086709750,-500.0,0.0005589,120]
[342725194,1732086709760,-500.0,0.0005589,120]
[342725195,1732086709770,-500.0,0.0005589,120]
[342725196,1732086709780,-500.0,0.0005589,120]
[342725197,1732086709789,-3545.19,0.0005589,120]
[342725198,1732086709800,-500.0,0.0005589,120]
[342725199,1732086709809,-503.21972143,0.0005589,120]
[342725200,1732086709818,-950.0,0.00056,120]
[342725201,1732086709827,-150.0,0.00056,110]
[342725202,1732086709836,-3575.0,0.00056,120]
[342725203,1732086709847,-385.0,0.00056031,30]
[342725204,1732086709856,-500.0,0.00056164,120]
[342725205,1732086709865,-500.0,0.00056164,7]
[342725206,1732086709874,-3015.583357,0.00056164,120]
[342725207,1732086709884,-580.63401771,0.00056164,120]
[342725208,1732086709894,-2434.320799,0.00056164,120]
[342725209,1732086709903,-500.0,0.00056164,120]
[342725210,1732086709911,-500.0,0.00056164,120]
[342725211,1732086709921,-500.0,0.00056164,120]
[342725212,1732086709930,-500.0,0.00056164,120]
[342725213,1732086709940,-500.0,0.00056164,120]
[342725214,1732086709949,-503.13977665,0.00056164,120]
[342725215,1732086709958,-500.0,0.00056164,120]
[342725216,1732086709967,-500.0,0.00056164,120]
[342725217,1732086709977,-433.13671914,0.00056164,120]
[342725218,1732086709986,-500.0,0.00056164,120]
[342725219,1732086709995,-200.0,0.00056164,10]
[342725220,1732086710004,-500.0,0.00056164,120]
[342725221,1732086710014,-500.0,0.00056164,120]
[342725222,1732086710023,-500.0,0.00056164,120]
[342725223,1732086710031,-504.40619233,0.00056164,120]
[342725224,1732086710041,-500.0,0.00056164,120]
[342725225,1732086710050,-152.28525759,0.00056164,120]
[342725226,1732086710059,-537.60203798,0.00056164,120]
[342725227,1732086710068,-212.23165244,0.00056164,120]
[342725228,1732086710078,-500.0,0.00056164,120]
[342725229,1732086710087,-500.0,0.00056164,14]
[342725230,1732086710096,-503.96261185,0.00056164,120]
[342725231,1732086710107,-431.06278465,0.00056164,120]
[342725232,1732086710121,-500.0,0.00056164,7]
[342725233,1732086710130,-500.0,0.00056164,120]
[342725234,1732086710139,-500.0,0.00056164,120]
[342725235,1732086710148,-502.00848388,0.00056164,120]
[342725236,1732086710157,-500.0,0.00056164,120]
[342725237,1732086710166,-502.28990354,0.00056164,120]
[342725238,1732086710175,-500.0,0.00056164,120]
[342725239,1732086710185,-594.75802781,0.00056164,120]
[342725240,1732086710194,-500.0,0.00056164,120]
[342725241,1732086710203,-500.0,0.00056164,120]
[342725242,1732086710214,-504.1240991,0.00056164,120]
[342725243,1732086710223,-523.75734332,0.00056164,120]
[342725244,1732086710232,-500.0,0.00056164,120]
[342725245,1732086710242,-507.61872502,0.00056164,120]
[342725246,1732086710253,-1703.66,0.00056164,120]
[342725247,1732086710263,-966.97,0.00056164,120]
[342725248,1732086710272,-500.0,0.00056164,120]
[342725249,1732086710282,-182.73753182,0.00056164,120]
[342725250,1732086710291,-500.0,0.00056164,120]
[342725251,1732086710301,-500.0,0.00056164,120]
[342725252,1732086710310,-395.53069446,0.00056164,120]
[342725253,1732086710323,-500.0,0.00056164,120]
[342725254,1732086710333,-408.20926506,0.00056164,120]
[342725255,1732086710342,-580.70196923,0.00056164,120]
[342725256,1732086710351,-500.0,0.00056164,120]
[342725257,1732086710362,-500.0,0.00056164,120]
[342725258,1732086710372,-502.026197,0.00056164,120]
[342725259,1732086710381,-378.62757882,0.00056164,120]
[342725260,1732086710392,-510.12416958,0.00056164,120]
[342725261,1732086710402,-500.0,0.00056164,120]
[342725262,1732086710412,-500.0,0.00056164,120]
[342725263,1732086710423,-500.0,0.00056164,120]
[342725264,1732086710432,-500.0,0.00056164,120]
[342725265,1732086710442,-505.58277918,0.00056164,120]
[342725266,1732086710452,-500.0,0.00056164,120]
[342725267,1732086710462,-500.0,0.00056164,120]
[342725268,1732086710472,-614.20896395,0.00056164,120]
[342725269,1732086710482,-2720.0,0.00056164,120]
[342725270,1732086710492,-500.0,0.00056164,120]
[342725271,1732086710503,-500.0,0.00056164,120]
[342725272,1732086710513,-500.0,0.00056164,120]
[342725273,1732086710524,-500.0,0.00056164,120]
[342725274,1732086710535,-500.0,0.00056164,120]
[342725275,1732086710545,-500.0,0.00056164,120]
[342725276,1732086710553,-500.0,0.00056164,120]
[342725277,1732086710562,-500.0,0.00056164,120]
[342725278,1732086710572,-500.0,0.00056164,120]
[342725279,1732086710583,-829.63,0.00056164,120]
[342725280,1732086710593,-382.67241251,0.00056164,120]
[342725281,1732086710607,-204.05842074,0.00056164,120]
[342725282,1732086710616,-500.0,0.00056164,120]
[342725283,1732086710626,-500.0,0.00056164,120]
[342725284,1732086710635,-500.0,0.00056164,120]
[342725285,1732086710645,-500.0,0.00056164,120]
[342725286,1732086710653,-500.0,0.00056164,120]
[342725287,1732086710662,-620.27,0.00056164,120]
[342725288,1732086710672,-500.0,0.00056164,120]
[342725289,1732086710681,-2345.32,0.00056164,120]
[342725290,1732086710692,-500.0,0.00056164,120]
[342725291,1732086710703,-500.0,0.00056164,120]
[342725292,1732086710714,-500.0,0.00056164,120]
[342725293,1732086710724,-500.0,0.00056164,120]
[342725294,1732086710734,-500.0,0.00056164,120]
[342725295,1732086710744,-250.0,0.00056164,120]
[342725296,1732086710753,-500.0,0.00056164,120]
[342725297,1732086710763,-500.0,0.00056164,120]
[342725298,1732086710774,-564.91847508,0.00056164,120]
[342725299,1732086710784,-1166.49,0.00056164,120]
[342725300,1732086710794,-500.0,0.00056164,120]
[342725301,1732086710804,-734.6,0.00056164,120]
[342725302,1732086710814,-500.0,0.00056164,120]
[342725303,1732086710823,-500.0,0.00056164,120]
[342725304,1732086710833,-500.0,0.00056164,120]
[342725305,1732086710843,-500.0,0.00056164,120]
[342725306,1732086710853,-500.0,0.00056164,120]
[342725307,1732086710863,-500.0,0.00056164,120]
[342725308,1732086710872,-500.0,0.00056164,120]
[342725309,1732086710882,-2844.38,0.00056164,120]
[342725310,1732086710891,-500.0,0.00056164,120]
[342725311,1732086710901,-504.91621768,0.00056164,120]
[342725312,1732086710910,-500.0,0.00056164,120]
[342725313,1732086710920,-500.0,0.00056164,120]
[342725314,1732086710929,-287.03941716,0.00056164,120]
[342725315,1732086710939,-1035.53,0.00056164,120]
[342725316,1732086710948,-500.0,0.00056164,120]
[342725317,1732086710957,-1318.23,0.00056164,120]
[342725318,1732086710967,-521.85249159,0.00056164,120]
[342725319,1732086710976,-500.0,0.00056164,120]
[342725320,1732086710985,-500.0,0.00056164,120]
[342725321,1732086710995,-500.0,0.00056164,120]
[342725322,1732086711005,-400.36,0.00056164,7]
[342725323,1732086711014,-150.0,0.00056164,120]
[342725324,1732086711023,-500.0,0.00056164,120]
[342725325,1732086711033,-503.21,0.00056164,120]
[342725326,1732086711043,-500.0,0.00056164,120]
[342725327,1732086711052,-500.0,0.00056164,120]
[342725328,1732086711061,-409.41390336,0.00056164,120]
[342725329,1732086711071,-500.0,0.00056164,120]
[342725330,1732086711080,-150.0,0.00056164,120]
[342725331,1732086711090,-500.0,0.00056164,120]
[342725332,1732086711099,-500.0,0.00056164,120]
[342725333,1732086711109,-500.0,0.00056164,120]
[342725334,1732086711271,-500.0,0.00056164,120]
[342725335,1732086711282,-500.0,0.00056164,120]
[342725336,1732086711291,-500.0,0.00056164,120]
[342725337,1732086711300,-2000.0,0.00056164,120]
[342725338,1732086711310,-500.0,0.00056164,120]
[342725339,1732086711321,-500.0,0.00056164,120]
[342725340,1732086711330,-500.0,0.00056164,120]
[342725341,1732086711339,-500.0,0.00056164,120]
[342725342,1732086711348,-2333.06,0.00056164,120]
[342725343,1732086711360,-500.0,0.00056164,120]
[342725344,1732086711369,-500.0,0.00056164,120]
[342725345,1732086711378,-381.94036168,0.00056164,120]
[342725346,1732086711387,-500.0,0.00056164,120]
[342725347,1732086711399,-500.0,0.00056164,120]
[342725348,1732086711408,-464.53105001,0.00056164,120]
[342725349,1732086711418,-504.04394505,0.00056164,120]
[342725350,1732086711427,-500.0,0.00056164,120]
[342725351,1732086711436,-500.0,0.00056164,120]
[342725352,1732086711445,-500.0,0.00056164,120]
[342725353,1732086711454,-500.0,0.00056164,120]
[342725354,1732086711463,-505.31543481,0.00056164,120]
[342725355,1732086711473,-500.0,0.00056164,120]
[342725356,1732086711482,-500.0,0.00056164,120]
[342725357,1732086711491,-500.0,0.00056164,120]
[342725358,1732086711500,-212.65954111,0.00056164,120]
[342725359,1732086711510,-500.0,0.00056164,120]
[342725360,1732086711519,-500.0,0.00056164,120]
[342725361,1732086711528,-500.0,0.00056164,120]
[342725362,1732086711537,-500.0,0.00056164,120]
[342725363,1732086711546,-500.0,0.00056164,120]
[342725364,1732086711556,-500.0,0.00056164,120]
[342725365,1732086711565,-500.0,0.00056164,120]
[342725366,1732086711574,-500.0,0.00056164,120]
[342725367,1732086711583,-500.0,0.00056164,120]
[342725368,1732086711592,-500.0,0.00056164,120]
[342725369,1732086711606,-500.0,0.00056164,120]
[342725370,1732086711615,-504.58757495,0.00056164,120]
[342725371,1732086711626,-500.0,0.00056164,120]
[342725372,1732086711635,-3055.61,0.00056164,120]
[342725373,1732086711645,-500.0,0.00056164,120]
[342725374,1732086711654,-621.18563556,0.00056164,120]
[342725375,1732086711663,-500.0,0.00056164,120]
[342725376,1732086711672,-346.44929798,0.00056164,120]
[342725377,1732086711682,-500.0,0.00056164,120]
[342725378,1732086711691,-500.0,0.00056164,120]
[342725379,1732086711701,-500.0,0.00056164,120]
[342725380,1732086711710,-500.0,0.00056164,120]
[342725381,1732086711720,-500.0,0.00056164,120]
[342725382,1732086711730,-3168.55,0.00056164,120]
[342725383,1732086711740,-224.75666307,0.00056164,120]
[342725384,1732086711749,-500.0,0.00056164,120]
[342725385,1732086711759,-204.11463387,0.00056164,120]
[342725386,1732086711769,-500.0,0.00056164,120]
[342725387,1732086711780,-1697.92,0.00056164,120]
[342725388,1732086711790,-500.0,0.00056164,120]
[342725389,1732086711800,-503.37132296,0.00056164,120]
[342725390,1732086711809,-516.9849725,0.00056164,120]
[342725391,1732086711820,-500.0,0.00056164,120]
[342725392,1732086711829,-500.0,0.00056164,120]
[342725393,1732086711839,-500.0,0.00056164,120]
[342725394,1732086711849,-508.85113368,0.00056164,120]
[342725395,1732086711860,-500.0,0.00056164,120]
[342725396,1732086711870,-500.0,0.00056164,120]
[342725397,1732086711880,-500.0,0.00056164,120]
[342725398,1732086711890,-507.32501659,0.00056164,120]
[342725399,1732086711899,-500.0,0.00056164,120]
[342725400,1732086711910,-500.0,0.00056164,120]
[342725401,1732086711920,-500.0,0.00056164,120]
[342725402,1732086711930,-505.45432392,0.00056164,120]
[342725403,1732086711940,-508.88205303,0.00056164,120]
[342725404,1732086711950,-500.0,0.00056164,120]
[342725405,1732086711959,-500.0,0.00056164,120]
[342725406,1732086711969,-500.0,0.00056164,120]
[342725407,1732086711978,-500.0,0.00056164,120]
[342725408,1732086711988,-500.0,0.00056164,120]
[342725409,1732086711998,-500.0,0.00056164,120]
[342725410,1732086712008,-500.0,0.00056164,120]
[342725411,1732086712020,-500.0,0.00056164,120]
[342725412,1732086712030,-500.0,0.00056164,120]
[342725413,1732086712040,-500.0,0.00056164,120]
[342725414,1732086712051,-500.0,0.00056164,120]
[342725415,1732086712060,-519.01674405,0.00056164,120]
[342725416,1732086712070,-500.0,0.00056164,120]
[342725417,1732086712080,-500.0,0.00056164,120]
[342725418,1732086712090,-500.0,0.00056164,120]
[342725419,1732086712100,-500.0,0.00056164,120]
[342725420,1732086712111,-500.0,0.00056164,120]
[342725421,1732086712120,-500.0,0.00056164,120]
[342725422,1732086712129,-500.0,0.00056164,120]
[342725423,1732086712139,-500.0,0.00056164,120]
[342725424,1732086712148,-500.0,0.00056164,120]
[342725425,1732086712157,-502.66490691,0.00056164,120]
[342725426,1732086712166,-500.0,0.00056164,120]
[342725427,1732086712175,-500.0,0.00056164,120]
[342725428,1732086712185,-500.0,0.00056164,120]
[342725429,1732086712194,-500.0,0.00056164,120]
[342725430,1732086712203,-500.0,0.00056164,120]
[342725431,1732086712212,-500.0,0.00056164,120]
[342725432,1732086712222,-521.59831777,0.00056164,120]
[342725433,1732086712232,-500.0,0.00056164,120]
[342725434,1732086712241,-502.56401144,0.00056164,120]
[342725435,1732086712251,-504.34516403,0.00056164,120]
[342725436,1732086712259,-659.42,0.00056164,120]
[342725437,1732086712269,-500.0,0.00056164,120]
[342725438,1732086712278,-500.0,0.00056164,120]
[342725439,1732086712288,-502.75871304,0.00056164,120]
[342725440,1732086712297,-283.25659033,0.00056164,120]
[342725441,1732086712307,-500.0,0.00056164,120]
[342725442,1732086712320,-265.52049649,0.00056164,120]
[342725443,1732086712330,-2717.09,0.00056164,120]
[342725444,1732086712340,-537.87099134,0.00056164,120]
[342725445,1732086712350,-504.1804186,0.00056164,120]
[342725446,1732086712362,-500.0,0.00056164,120]
[342725447,1732086712371,-500.0,0.00056164,120]
[342725448,1732086712381,-500.0,0.00056164,120]
[342725449,1732086712390,-500.0,0.00056164,120]
[342725450,1732086712401,-510.55873871,0.00056164,120]
[342725451,1732086712412,-500.0,0.00056164,120]